{"text_format":"3","workbook":"xlsx","n_sheets":3,"sheets":["Lista de estudiantes","Lista de clase","Detalles del estudiante"],"not_rendered":{"images":2,"defined_names":8},"read":"whole","date_system":"1900"}

{"sheet":"Lista de estudiantes","index":0,"n_rows":8,"n_cols":13,"rows_kept":8,"merged":[[1,2,2,3],[1,4,1,11],[2,4,2,11],[6,12,8,16]]}
[]
[null,null,"Lista de estudiantes",null,"IR A LISTA DE CLASE"]
[{"$nulls":4},"IR A DETALLES DEL ESTUDIANTE"]
[null,null,"NOMBRE DEL ESTUDIANTE","CORREO","TELÉFONO PARTICULAR","CELULAR","Fecha de nacimiento","CONTACTOS DE EMERGENCIA","TELÉFONO DE EMERGENCIA","MÉDICO","TELÉFONO DEL MÉDICO","  "]
[null,null,"Nombre 1","Dirección de correo","Teléfono particular","Celular","Fecha","Contacto 1","Teléfono de emergencia","Médico 1","Teléfono del médico"]
[null,null,"Nombre 2","Dirección de correo","Teléfono particular","Celular","Fecha","Contacto 2","Teléfono de emergencia","Médico 2","Teléfono del médico"]
[null,null,"Nombre 3","Dirección de correo","Teléfono particular","Celular","Fecha","Contacto 3","Teléfono de emergencia","Médico 3","Teléfono del médico",null,"Consejo: para agregar más alumnos, en la última celda de la tabla, presiona la tecla de tabulador."]
[null,null,"Nombre 4","Dirección de correo","Teléfono particular","Celular","Fecha","Contacto 4","Teléfono de emergencia","Médico 4","Teléfono del médico"]

{"sheet":"Lista de clase","index":1,"n_rows":12,"n_cols":7,"rows_kept":12,"merged":[[1,2,2,2],[1,3,2,3],[1,4,1,6],[2,4,2,6]]}
[]
[null,null,"Lista de clase","Instituto de Diseño Gráfico","IR A LISTA DE ESTUDIANTES"]
[{"$nulls":4},"IR A DETALLES DEL ESTUDIANTE"]
[null,null,"CURSO","Nombre del curso","FECHA DE INICIO","Fecha"]
[null,null,"PROFESOR","Profesor 1","FECHA DE FINALIZACIÓN","Fecha"]
[null,null,"ESTUDIANTES INSCRITOS",{"$f":"COUNTA(Lista_De_Estudiantes[NOMBRE DEL ESTUDIANTE])","v":4}]
[]
[null,null,"NOMBRE DEL ESTUDIANTE","CORREO","TELÉFONO PARTICULAR","CELULAR","  "]
[null,null,"Nombre 1",{"$f":"IFERROR(VLOOKUP(Lista_De_Estudiantes[[#This Row],[NOMBRE DEL ESTUDIANTE]],Estudiantes[],2),\"\")","v":"Dirección de correo"},{"$f":"IFERROR(VLOOKUP(Lista_De_Estudiantes[[#This Row],[NOMBRE DEL ESTUDIANTE]],Estudiantes[],3),\"\")","v":"Teléfono particular"},{"$f":"IFERROR(VLOOKUP(Lista_De_Estudiantes[[#This Row],[NOMBRE DEL ESTUDIANTE]],Estudiantes[],4),\"\")","v":"Celular"}]
[null,null,"Nombre 2",{"$f":"IFERROR(VLOOKUP(Lista_De_Estudiantes[[#This Row],[NOMBRE DEL ESTUDIANTE]],Estudiantes[],2),\"\")","v":"Dirección de correo"},{"$f":"IFERROR(VLOOKUP(Lista_De_Estudiantes[[#This Row],[NOMBRE DEL ESTUDIANTE]],Estudiantes[],3),\"\")","v":"Teléfono particular"},{"$f":"IFERROR(VLOOKUP(Lista_De_Estudiantes[[#This Row],[NOMBRE DEL ESTUDIANTE]],Estudiantes[],4),\"\")","v":"Celular"}]
[null,null,"Nombre 3",{"$f":"IFERROR(VLOOKUP(Lista_De_Estudiantes[[#This Row],[NOMBRE DEL ESTUDIANTE]],Estudiantes[],2),\"\")","v":"Dirección de correo"},{"$f":"IFERROR(VLOOKUP(Lista_De_Estudiantes[[#This Row],[NOMBRE DEL ESTUDIANTE]],Estudiantes[],3),\"\")","v":"Teléfono particular"},{"$f":"IFERROR(VLOOKUP(Lista_De_Estudiantes[[#This Row],[NOMBRE DEL ESTUDIANTE]],Estudiantes[],4),\"\")","v":"Celular"}]
[null,null,"Nombre 4",{"$f":"IFERROR(VLOOKUP(Lista_De_Estudiantes[[#This Row],[NOMBRE DEL ESTUDIANTE]],Estudiantes[],2),\"\")","v":"Dirección de correo"},{"$f":"IFERROR(VLOOKUP(Lista_De_Estudiantes[[#This Row],[NOMBRE DEL ESTUDIANTE]],Estudiantes[],3),\"\")","v":"Teléfono particular"},{"$f":"IFERROR(VLOOKUP(Lista_De_Estudiantes[[#This Row],[NOMBRE DEL ESTUDIANTE]],Estudiantes[],4),\"\")","v":"Celular"}]

{"sheet":"Detalles del estudiante","index":2,"n_rows":13,"n_cols":4,"rows_kept":13,"merged":[[1,2,2,2],[1,3,1,4],[2,3,2,4],[3,2,3,3]]}
[]
[null,null,"Detalles del estudiante","IR A LISTA DE ESTUDIANTES"]
[{"$nulls":3},"IR A LISTA DE CLASE"]
[null,null,"SUGERENCIA: SELECCIONA UN ESTUDIANTE DE LA LISTA DESPLEGABLE EN LA CELDA D5 PARA ACTUALIZAR LOS DETALLES DEL ESTUDIANTE"]
[null,null,"NOMBRE DEL ESTUDIANTE","Nombre 1"]
[null,null,"CORREO",{"$f":"IFERROR(VLOOKUP(NombreDelEstudiante,Estudiantes[],2,FALSE),\"\")","v":"Dirección de correo"}]
[null,null,"TELÉFONO PARTICULAR",{"$f":"IFERROR(VLOOKUP(NombreDelEstudiante,Estudiantes[],3,FALSE),\"\")","v":"Teléfono particular"}]
[null,null,"CELULAR",{"$f":"IFERROR(VLOOKUP(NombreDelEstudiante,Estudiantes[],4,FALSE),\"\")","v":"Celular"}]
[null,null,"Fecha de nacimiento",{"$f":"IFERROR(VLOOKUP(NombreDelEstudiante,Estudiantes[],5,FALSE),\"\")","v":"Fecha"}]
[null,null,"CONTACTOS DE EMERGENCIA",{"$f":"IFERROR(VLOOKUP(NombreDelEstudiante,Estudiantes[],6,FALSE),\"\")","v":"Contacto 1"}]
[null,null,"TELÉFONO DE EMERGENCIA",{"$f":"IFERROR(VLOOKUP(NombreDelEstudiante,Estudiantes[],7,FALSE),\"\")","v":"Teléfono de emergencia"}]
[null,null,"MÉDICO",{"$f":"IFERROR(VLOOKUP(NombreDelEstudiante,Estudiantes[],8,FALSE),\"\")","v":"Médico 1"}]
[null,null,"TELÉFONO DEL MÉDICO",{"$f":"IFERROR(VLOOKUP(NombreDelEstudiante,Estudiantes[],9,FALSE),\"\")","v":"Teléfono del médico"}]